bitfinex-derivatives/quotes_BNBF0:USTF0_20250302
["timestamp","ask_amount","ask_price","bid_price","bid_amount"]
[1740945787627,1.259,626.58,625.36,0.26352645]
[1740945787826,0.29354349,626.57,625.37,0.26352645]
[1740945788032,0.29354349,626.57,625.36,0.26352645]
[1740945788232,1.259,626.58,625.29,1.19666743]
[1740945788531,0.29350718,626.57,625.36,1.66782488]
[1740945788735,0.29350718,626.57,625.58,1.19666743]
[1740945789829,1.259,626.58,625.58,1.19666743]
[1740945790029,0.29349626,626.57,625.58,1.19666743]
[1740945792232,0.29349626,626.57,625.52,1.19666743]
[1740945792433,0.29349626,626.57,625.53,0.26362708]
[1740945793229,1.259,626.58,625.52,1.19666743]
[1740945793429,0.29350648,626.57,625.53,0.26368531]
[1740945794732,0.29350648,626.57,625.49,0.26368531]
[1740945794933,0.29351051,626.56,625.5,0.26378083]
[1740945795133,1.259,626.58,625.48,1.66764505]
[1740945796936,1.259,626.58,625.47,1.19666743]
[1740945797131,1.259,626.58,625.36,1.19666743]
[1740945797330,1.259,626.58,625.48,1.66767169]
[1740945797534,1.259,626.58,625.36,1.19666743]
[1740945797731,1.259,626.58,625.48,1.66767169]
[1740945798131,2.42,626.58,625.36,1.19666743]
[1740945798335,2.42,626.58,625.48,1.66767169]
[1740945798638,2.42,626.58,625.36,1.19666743]
[1740945798938,2.42,626.58,625.48,1.66767169]
[1740945799136,2.42,626.58,625.36,1.19666743]
[1740945799337,2.42,626.58,625.37,1.93147024]
[1740945799542,2.42,626.58,625.38,0.26371863]
[1740945800140,2.42,626.58,625.37,0.26371863]
[1740945800341,2.42,626.58,625.38,0.26371863]
[1740945801043,4.501,626.58,625.38,0.26371863]
[1740945803145,4.501,626.58,625.37,1.66774495]
[1740945803338,4.501,626.58,625.38,0.26374448]
[1740945804144,4.501,626.58,625.37,1.66774495]
[1740945805646,0.29353221,626.57,625.38,0.26388545]
[1740945806242,0.29353221,626.57,625.37,1.66779823]
[1740945806445,4.501,626.58,625.37,1.66779823]
[1740945806744,0.29352105,626.57,625.38,0.26386362]
[1740945808748,0.29352105,626.57,625.47,1.19666743]
[1740945808944,0.29352105,626.57,625.48,0.26386362]
[1740945809952,3.242,626.58,625.47,1.19666743]
[1740945810544,3.242,626.58,625.51,1.19666743]
[1740945811754,3.242,626.58,625.52,0.263611]
[1740945812847,0.29349534,626.57,625.52,0.263611]
[1740945813952,3.242,626.58,625.52,0.263611]
[1740945814956,0.29350538,626.57,625.52,0.263611]
[1740945815547,0.29350538,626.57,625.62,1.19666743]
[1740945816347,3.242,626.58,625.62,1.19666743]
[1740945816553,3.242,626.58,625.63,0.31967776]
[1740945817853,3.242,626.58,625.7,1.19666743]
[1740945819559,3.242,626.58,625.71,0.31963689]
[1740945820757,3.242,626.58,625.77,1.19666743]
[1740945821654,3.242,626.58,625.78,0.31960113]
[1740945822360,3.242,626.58,625.8,1.19666743]
[1740945822960,3.242,626.58,625.81,0.31958581]
[1740945826264,2.123,626.58,625.81,0.31958581]
[1740945827465,2.123,626.58,625.81,1.51625324]
[1740945829062,1.161,626.58,625.81,1.51625324]
[1740945829665,1.161,626.58,625.84,1.19666743]
[1740945830062,1.161,626.58,625.85,0.31956539]
[1740945832266,1.161,626.58,625.86,0.26309747]
[1740945832464,1.161,626.58,625.85,0.31956539]
[1740945832667,1.161,626.58,625.86,0.26311665]
[1740945833064,1.161,626.58,625.87,0.31955517]
[1740945833259,1.161,626.58,625.88,0.26311665]
[1740945833465,1.161,626.58,625.89,0.31954496]
[1740945833867,1.161,626.58,625.9,0.26296148]
[1740945834166,1.161,626.58,625.91,0.31953475]
[1740945835869,1.161,626.58,625.92,0.26284058]
[1740945836063,1.161,626.58,625.93,0.31952454]
[1740945848677,2.309,626.58,625.93,0.31952454]
[1740945851475,2.309,626.58,625.94,0.26308727]
[1740945851679,2.309,626.58,625.95,0.31951433]
[1740945851874,2.309,626.58,625.96,0.26308727]
[1740945852074,3.497,626.58,625.96,0.26308727]
[1740945852474,3.497,626.58,625.97,0.31950412]
[1740945852678,3.497,626.58,625.98,0.26308727]
[1740945853180,3.497,626.58,625.99,0.31949392]
[1740945853380,3.497,626.58,626.0,0.26308727]
[1740945853582,2.336,626.58,626.01,0.31948371]
[1740945853783,2.336,626.58,626.02,0.26308727]
[1740945854482,2.336,626.58,626.01,0.31948371]
[1740945854677,2.336,626.58,626.02,0.26283622]
[1740945855581,2.336,626.58,626.03,0.3194735]
[1740945855789,2.336,626.58,626.04,0.26283622]
[1740945855987,2.336,626.58,626.05,0.3194633]
[1740945856286,2.336,626.58,626.06,0.2627023]
[1740945856786,2.336,626.58,626.14,1.19666743]
[1740945856986,2.336,626.58,626.15,0.58211458]
[1740945857185,2.336,626.58,626.16,0.2627023]
[1740945857384,2.336,626.58,626.17,0.31940207]
[1740945857585,2.336,626.58,626.18,0.2627023]
[1740945857786,2.336,626.58,626.19,0.31939187]
[1740945861691,2.336,626.58,626.2,0.26272644]
[1740945861891,2.336,626.58,626.21,0.31938167]
[1740945865489,2.336,626.58,626.22,0.26270495]
[1740945865799,2.336,626.58,626.23,0.31937147]
[1740945865999,2.336,626.58,626.24,0.26266947]
[1740945866193,2.336,626.58,626.25,0.31936127]
[1740945866397,2.336,626.58,626.26,0.26266947]
[1740945866594,2.336,626.58,626.27,0.31935107]
[1740945866794,2.336,626.58,626.28,0.26257776]
[1740945867101,2.336,626.58,626.29,0.31934088]
[1740945868998,2.336,626.58,626.31,1.19666743]
[1740945869399,2.336,626.58,626.32,0.31932558]
[1740945877802,1.188,626.58,626.32,0.31932558]
[1740945878009,2.397,626.79,626.32,0.31932558]
[1740945878908,1.165,626.79,626.38,1.19666743]
[1740945879207,1.165,626.79,626.39,0.31928989]
[1740945889617,1.165,626.79,626.39,1.51595732]
[1740945892114,1.165,626.79,626.39,0.31928989]
[1740945893815,1.15409684,626.79,626.39,0.31928989]
[1740945900224,2.292,626.99,626.4,0.26195696]
[1740945900426,2.292,626.99,626.41,0.3192797]
[1740945900623,1.4380471,628.49,626.41,0.3192797]
[1740945900825,0.31823316,628.47,626.41,0.3192797]
[1740945901022,0.29309209,628.46,626.41,0.3192797]
[1740945901223,0.31824836,628.44,626.41,0.3192797]
[1740945901428,0.29309209,628.43,626.41,0.3192797]
[1740945901627,0.31826355,628.41,626.41,0.3192797]
[1740945901826,0.29309209,628.4,626.41,0.3192797]
[1740945902030,0.31827874,628.38,626.41,0.3192797]
[1740945902229,0.29309209,628.37,626.41,0.3192797]
[1740945902428,0.31829394,628.35,626.41,0.3192797]
[1740945902630,0.29309209,628.34,626.42,0.26199255]
[1740945902825,1.4380471,628.29,626.46,1.19666743]
[1740945903030,0.31833447,628.27,626.47,0.31924912]
[1740945903329,0.29309209,628.26,626.47,0.31924912]
[1740945903630,0.31834967,628.24,626.47,0.31924912]
[1740945903831,0.29309209,628.23,626.47,0.31924912]
[1740945904031,0.31836487,628.21,626.47,0.31924912]
[1740945904332,0.29309209,628.2,626.47,0.31924912]
[1740945904534,0.31838008,628.18,626.47,0.31924912]
[1740945904728,0.29309209,628.17,626.47,0.31924912]
[1740945904929,0.31839528,628.15,626.47,0.31924912]
[1740945905129,0.29309209,628.14,626.47,0.31924912]
[1740945905329,0.31841049,628.12,626.47,0.31924912]
[1740945905631,0.29309209,628.11,626.47,0.31924912]
[1740945905833,0.29309209,628.1,626.47,0.31924912]
[1740945906235,0.29309209,628.09,626.47,0.31924912]
[1740945906432,0.29309209,628.08,626.47,0.31924912]
[1740945906633,0.29309209,628.07,626.47,0.31924912]
[1740945906836,0.29309209,628.06,626.47,0.31924912]
[1740945907035,0.61153807,628.05,626.47,0.31924912]
[1740945907334,0.61154314,628.04,626.47,0.31924912]
[1740945907536,0.61154821,628.03,626.47,0.31924912]
[1740945907829,0.61155328,628.02,626.47,0.31924912]
[1740945908035,0.29309209,628.01,626.47,0.31924912]
[1740945908238,0.61156342,628.0,626.47,0.31924912]
[1740945908437,0.61156849,627.99,626.47,0.31924912]
[1740945908631,1.093,628.01,626.47,0.31924912]
[1740945908632,0.61157357,627.98,626.47,0.31924912]
[1740945908833,0.29309209,627.97,626.47,0.31924912]
[1740945909034,0.61158371,627.96,626.47,0.31924912]
[1740945909333,0.61158878,627.95,626.47,0.31924912]
[1740945909529,0.29309209,627.94,626.47,0.31924912]
[1740945909736,0.29309209,627.93,626.47,0.31924912]
[1740945909935,0.29309209,627.92,626.47,0.31924912]
[1740945910132,0.29309209,627.91,626.47,0.31924912]
[1740945910334,0.29309209,627.9,626.47,0.31924912]
[1740945910534,0.29309209,627.89,626.47,0.31924912]
[1740945910737,0.29309209,627.88,626.47,0.31924912]
[1740945910936,0.29311891,627.87,626.47,0.31924912]
[1740945911237,0.29311891,627.86,626.47,0.31924912]
[1740945911438,0.29311891,627.85,626.47,0.31924912]
[1740945911637,0.29311891,627.84,626.47,0.31924912]
[1740945911839,0.29311891,627.83,626.47,0.31924912]
[1740945912034,0.29311891,627.82,626.47,0.31924912]
[1740945912236,0.29311891,627.81,626.47,0.31924912]
[1740945912439,0.29311891,627.8,626.47,0.31924912]
[1740945912734,0.29311891,627.79,626.47,0.31924912]
[1740945912939,0.29311891,627.93,626.47,0.31924912]
[1740945913238,0.29311891,627.92,626.47,0.31924912]
[1740945913434,0.29311891,627.91,626.47,0.31924912]
[1740945913632,0.29311891,627.9,626.47,0.31924912]
[1740945913832,0.29311891,627.89,626.47,0.31924912]
[1740945914034,0.29311891,627.88,626.47,0.31924912]
[1740945914239,0.29311891,627.87,626.47,0.31924912]
[1740945914540,0.29311891,627.86,626.47,0.31924912]
[1740945914737,0.29311891,627.85,626.47,0.31924912]
[1740945914939,0.29311891,627.84,626.47,0.31924912]
[1740945915138,0.29311891,627.92,626.47,0.31924912]
[1740945915439,0.29311891,627.83,626.47,0.31924912]
[1740945915639,0.29311891,627.82,626.47,0.31924912]
[1740945915841,0.29307121,627.81,626.47,0.31924912]
[1740945916040,0.29307121,627.8,626.47,0.31924912]
[1740945916242,0.29307121,627.92,626.47,0.31924912]
[1740945916539,0.778,627.79,626.47,0.31924912]
[1740945916739,0.29307121,627.78,626.47,0.31924912]
[1740945917341,0.778,627.79,626.47,0.31924912]
[1740945917641,0.29306632,627.78,626.47,0.31924912]
[1740945919644,0.29306632,627.78,626.52,1.19666743]
[1740945919841,0.29306632,627.78,626.53,0.31921855]
[1740945921843,0.29306632,627.78,626.54,1.19666743]
[1740945922242,0.778,627.79,626.54,1.19666743]
[1740945922442,0.29306719,627.78,626.55,0.31920836]
[1740945923836,0.778,627.79,626.55,0.31920836]
[1740945924041,0.29307154,627.78,626.55,0.31920836]
[1740945924439,0.29307154,627.78,626.56,1.19666743]
[1740945924639,0.29307154,627.78,626.57,0.31919817]
[1740945924944,1.157,627.77,626.57,0.31919817]
[1740945925145,0.29307154,627.76,626.57,0.31919817]
[1740945926551,0.29307154,627.76,626.57,1.5158656]
[1740945928448,0.29307154,627.76,626.57,0.31919817]
[1740945928648,0.959,627.75,626.57,0.31919817]
[1740945928851,0.29307183,627.74,626.57,0.31919817]
[1740945930351,0.959,627.75,626.57,0.31919817]
[1740945930552,0.29307155,627.74,626.57,0.31919817]
[1740945930954,0.29307325,627.73,626.57,0.31919817]
[1740945931154,0.29307325,627.72,626.57,0.31919817]
[1740945931349,0.29307325,627.74,626.57,0.31919817]
[1740945931549,0.29307325,627.73,626.57,0.31919817]
[1740945931748,0.29307325,627.72,626.57,0.31919817]
[1740945931948,0.29307325,627.74,626.57,0.31919817]
[1740945932152,0.29307325,627.73,626.57,0.31919817]
[1740945932353,0.29307325,627.72,626.57,0.31919817]
[1740945932554,0.29307325,627.74,626.57,0.31919817]
[1740945932753,0.29307325,627.73,626.57,0.31919817]
[1740945932949,0.29307325,627.72,626.57,0.31919817]
[1740945933152,0.959,627.75,626.57,0.31919817]
[1740945934854,0.29311147,627.74,626.57,0.31919817]
[1740945935252,0.959,627.75,626.57,0.31919817]
[1740945935253,0.29309162,627.73,626.57,0.31919817]
[1740945935449,0.29309162,627.74,626.57,0.31919817]
[1740945935650,0.29309162,627.73,626.57,0.31919817]
[1740945935855,0.959,627.75,626.57,0.31919817]
[1740945935856,0.29309162,627.72,626.57,0.31919817]
[1740945936057,0.29309162,627.74,626.57,0.31919817]
[1740945936254,0.29309162,627.73,626.57,0.31919817]
[1740945936450,0.959,627.75,626.57,0.31919817]
[1740945936451,0.29309162,627.74,626.57,0.31919817]
[1740945936650,0.29309162,627.73,626.57,0.31919817]
[1740945936851,0.959,627.75,626.57,0.31919817]
[1740945937155,0.29307079,627.74,626.57,0.31919817]
[1740945937555,0.959,627.75,626.57,0.31919817]
[1740945941661,0.778,627.79,626.57,0.31919817]
[1740945944263,1.056,627.78,626.57,0.31919817]
[1740945946264,1.308,627.77,626.57,0.31919817]
[1740945949069,0.29305549,627.76,626.57,0.31919817]
[1740945949471,1.012,627.75,626.57,0.31919817]
[1740945950671,0.29302735,627.74,626.57,0.31919817]
[1740945950873,1.14002735,627.74,626.57,0.31919817]
[1740945951073,0.29302735,627.73,626.57,0.31919817]
[1740945952975,0.847,627.74,626.57,0.31919817]
[1740945953175,0.29302862,627.73,626.57,0.31919817]
[1740945954178,0.29302862,627.73,626.64,1.19666743]
[1740945955272,0.29302862,627.73,626.65,0.31915742]
[1740945955971,0.847,627.74,626.65,0.31915742]
[1740945956175,0.29308772,627.73,626.65,0.31915742]
[1740945956477,0.29308502,627.72,626.65,0.31915742]
[1740945956673,0.29308502,627.71,626.65,0.31915742]
[1740945956871,0.29308502,627.73,626.65,0.31915742]
[1740945957073,0.29308502,627.72,626.65,0.31915742]
[1740945957278,0.29308502,627.71,626.65,0.31915742]
[1740945957575,0.29308502,627.7,626.65,0.31915742]
[1740945963680,1.43408502,627.7,626.65,0.31915742]
[1740945963876,0.29308502,627.69,626.65,0.31915742]
[1740945964081,0.29308502,627.68,626.65,0.31915742]
[1740945964376,0.29308502,627.67,626.65,0.31915742]
[1740945964578,0.29308502,627.66,626.43,1.19666743]
[1740945964781,0.29308502,627.65,626.43,1.19666743]
[1740945964980,0.29308502,627.64,626.43,1.19666743]
[1740945965180,0.29308502,627.63,626.43,1.19666743]
[1740945965381,0.29308502,627.62,626.43,1.19666743]
[1740945965682,0.2932811,627.61,626.43,1.19666743]
[1740945965881,0.2932811,627.69,626.43,1.19666743]
[1740945966082,0.2932811,627.68,626.43,1.19666743]
[1740945966275,0.2932811,627.67,626.43,1.19666743]
[1740945966478,0.2932811,627.66,626.43,1.19666743]
[1740945966676,0.2932811,627.65,626.43,1.19666743]
[1740945966880,0.2932811,627.64,626.43,1.19666743]
[1740945967078,0.2932811,627.63,626.43,1.19666743]
[1740945967280,0.29337027,627.62,626.43,1.19666743]
[1740945967476,0.29337027,627.61,626.11,1.19666743]
[1740945967681,0.29337027,627.6,626.11,1.19666743]
[1740945968083,0.29337027,627.59,626.11,1.19666743]
[1740945968283,0.29337027,627.58,626.11,1.19666743]
[1740945968480,0.29337027,627.57,626.11,1.19666743]
[1740945968683,0.29337027,627.56,626.11,1.19666743]
[1740945968984,0.29337027,627.55,626.11,1.19666743]
[1740945969185,0.29337027,627.54,626.11,1.19666743]
[1740945969385,0.29337027,627.53,626.11,1.19666743]
[1740945969578,0.29337027,627.52,626.11,1.19666743]
[1740945969782,0.29337027,627.51,625.64,1.66650704]
[1740945969983,0.29337027,627.5,625.65,0.31966754]
[1740945970183,0.29337027,627.49,625.65,0.31966754]
[1740945970391,0.29337027,627.48,625.65,0.31966754]
[1740945970584,0.29337027,627.47,625.65,0.31966754]
[1740945970886,0.29337027,627.46,625.65,0.31966754]
[1740945971081,0.29337027,627.45,625.65,0.31966754]
[1740945971286,0.29337027,627.44,625.65,0.31966754]
[1740945971486,0.29337027,627.43,625.65,0.31966754]
[1740945971687,0.29337027,627.42,625.65,0.31966754]
[1740945971885,0.29337027,627.41,625.65,0.31966754]
[1740945972089,0.29337027,627.4,625.65,0.31966754]
[1740945972289,0.29337027,627.39,625.65,0.31966754]
[1740945972490,0.29337027,627.38,625.65,0.31966754]
[1740945972691,0.29337027,627.37,625.65,0.31966754]
[1740945972892,0.29337027,627.36,625.65,0.31966754]
[1740945973087,0.29337027,627.35,625.65,0.31966754]
[1740945973392,0.29337027,627.34,625.65,0.31966754]
[1740945973691,1.236,627.45,625.65,0.31966754]
[1740945973890,0.29357307,627.44,625.65,0.31966754]
[1740945974092,0.29357307,627.43,625.65,0.31966754]
[1740945974287,0.29357307,627.42,625.65,0.31966754]
[1740945974485,0.29357307,627.41,625.65,0.31966754]
[1740945974690,0.29357307,627.4,625.65,0.31966754]
[1740945974892,0.29357307,627.39,625.65,0.31966754]
[1740945975092,0.94019971,627.38,625.65,0.31966754]
[1740945975293,0.77,627.41,625.65,0.31966754]
[1740945975591,0.94024492,627.4,625.65,0.31966754]
[1740945975792,0.94024492,627.39,625.65,0.31966754]
[1740945975992,0.94024492,627.38,625.65,0.31966754]
[1740945976193,0.94024492,627.37,625.65,0.31966754]
[1740945976387,0.94024492,627.36,625.65,0.31966754]
[1740945976589,0.94024492,627.35,625.65,0.31966754]
[1740945976789,0.94024492,627.34,625.65,0.31966754]
[1740945977092,0.94024492,627.33,625.65,0.31966754]
[1740945977293,0.94024492,627.32,625.65,0.31966754]
[1740945977493,0.94024492,627.31,625.65,0.31966754]
[1740945977694,0.94024492,627.3,625.65,0.31966754]
[1740945977889,0.29358762,627.29,625.65,0.31966754]
[1740945978090,0.29358762,627.28,625.65,0.31966754]
[1740945978290,0.29358762,627.27,625.65,0.31966754]
[1740945978496,0.29358762,627.26,625.1,1.66790481]
[1740945978693,0.29358762,627.25,625.11,0.31994368]
[1740945978899,0.29358762,627.24,625.11,0.31994368]
[1740945979097,0.29358762,627.23,625.11,0.31994368]
[1740945979299,0.29358762,627.22,625.11,0.31994368]
[1740945979596,0.77,627.41,625.11,0.31994368]
[1740945979597,0.29358762,627.21,625.11,0.31994368]
[1740945979796,0.29358762,627.2,625.11,0.31994368]
[1740945980000,0.29358762,627.19,625.11,0.31994368]
[1740945980194,0.77,627.41,625.11,0.31994368]
[1740945980398,0.29372679,627.4,625.11,0.31994368]
[1740945980594,0.29372679,627.39,625.11,0.31994368]
[1740945980796,0.29372679,627.38,625.11,0.31994368]
[1740945980999,0.29372679,627.37,625.11,0.31994368]
[1740945981197,0.29372679,627.36,625.11,0.31994368]
[1740945981405,0.29372679,627.35,625.11,0.31994368]
[1740945981705,0.29372679,627.34,625.11,0.31994368]
[1740945981901,0.29372679,627.33,625.11,0.31994368]
[1740945982097,0.29372679,627.32,625.11,0.31994368]
[1740945982301,0.29372679,627.31,625.11,0.31994368]
[1740945982499,0.29372679,627.3,625.11,0.31994368]
[1740945982700,0.29372679,627.29,625.11,0.31994368]
[1740945982998,0.29372679,627.28,625.11,0.31994368]
[1740945983202,0.29372679,627.27,625.11,0.31994368]
[1740945983401,0.77,627.41,625.11,0.31994368]
[1740945983602,0.29371764,627.4,625.11,0.31994368]
[1740945983800,0.29371764,627.39,625.11,0.31994368]
[1740945984005,0.29371764,627.38,625.11,0.31994368]
[1740945984205,0.77,627.41,625.11,0.31994368]
[1740945984206,0.29371764,627.37,625.11,0.31994368]
[1740945984406,0.29371764,627.36,625.11,0.31994368]
[1740945984706,0.29371764,627.35,625.11,0.31994368]
[1740945985006,0.77,627.41,625.11,0.31994368]
[1740945985206,0.29375317,627.4,625.11,0.31994368]
[1740945985405,0.29375317,627.39,625.11,0.31994368]
[1740945985600,0.29375317,627.38,625.11,0.31994368]
[1740945985805,0.29375317,627.37,625.11,0.31994368]
[1740945986105,0.77,627.41,625.11,0.31994368]
[1740945986106,0.29375317,627.36,625.11,0.31994368]
[1740945986302,0.29375317,627.35,625.11,0.31994368]
[1740945986608,0.29375317,627.34,625.11,0.31994368]
[1740945986806,0.77,627.41,625.11,0.31994368]
[1740945987106,0.31882671,627.3,625.11,0.31994368]
[1740945987401,0.9407935,627.29,625.11,0.31994368]
[1740945987606,0.31888263,627.19,625.11,0.31994368]
[1740945987805,0.9407935,627.18,625.11,0.31994368]
[1740945988010,0.31893857,627.08,625.11,0.31994368]
[1740945988306,0.29376875,627.07,625.11,0.31994368]
[1740945988502,0.29376875,627.06,625.11,0.31994368]
[1740945988701,0.29376875,627.05,625.11,0.31994368]
[1740945988907,0.29376875,627.04,625.11,0.31994368]
[1740945989108,0.31896909,627.02,625.11,0.31994368]
[1740945989309,0.29376875,627.01,625.11,0.31994368]
[1740945989506,0.31898435,626.99,625.11,0.31994368]
[1740945989705,0.29376875,626.98,625.11,0.31994368]
[1740945989903,0.29376097,626.97,625.11,0.31994368]
[1740945990106,0.3190047,626.95,625.11,0.31994368]
[1740945990306,0.29376097,626.94,625.11,0.31994368]
[1740945990507,0.31901997,626.92,625.11,0.31994368]
[1740945990709,0.29376097,626.91,625.11,0.31994368]
[1740945990910,0.31903523,626.89,625.11,0.31994368]
[1740945991209,0.29376097,626.88,625.11,0.31994368]
[1740945991409,0.31903523,626.89,625.11,0.31994368]
[1740945991605,0.29374864,626.88,625.11,0.31994368]
[1740945991809,0.29374864,626.87,625.11,0.31994368]
[1740945992113,0.61279914,626.86,625.11,0.31994368]
[1740945992307,0.29374864,626.85,625.11,0.31994368]
[1740945992504,0.29374864,626.84,625.11,0.31994368]
[1740945992704,0.29374864,626.83,625.11,0.31994368]
[1740945992909,0.29374864,626.82,625.11,0.31994368]
[1740945993111,0.29369214,626.81,625.11,0.31994368]
[1740945993412,0.29369214,626.8,625.11,0.31994368]
[1740945993612,0.29369214,626.79,625.11,0.31994368]
[1740945993805,0.29369214,626.78,625.11,0.31994368]
[1740945994012,0.61278845,626.77,625.11,0.31994368]
[1740945994212,0.29369214,626.76,625.11,0.31994368]
[1740945994410,0.61279864,626.75,625.11,0.31994368]
[1740945994614,0.3191065,626.75,625.11,0.31994368]
[1740945994810,0.29367061,626.74,625.11,0.31994368]
[1740945995013,0.29367061,626.73,625.11,0.31994368]
[1740945995213,0.29367061,626.72,625.12,0.2633783]
[1740945995413,0.29367061,626.74,625.11,0.31994368]
[1740945995713,0.29367061,626.73,625.11,0.31994368]
[1740945995915,0.29367061,626.74,625.12,0.26330589]
[1740945996109,0.29367061,626.73,625.12,0.26330589]
[1740945996514,0.29367061,626.72,625.12,0.26330589]
[1740945996814,0.29367061,626.71,625.14,0.31992833]
[1740945997014,0.29367061,626.7,625.14,0.31992833]
[1740945997314,0.29367061,626.69,625.14,0.31992833]
[1740945997514,0.29367061,626.74,625.14,0.31992833]
[1740945997716,0.29367061,626.73,625.14,0.31992833]
[1740945998011,0.29367061,626.74,625.15,0.26312847]
[1740945998208,0.29367061,626.73,625.15,0.26312847]
[1740945998412,0.29367061,626.74,625.14,0.31992833]
[1740945998612,0.29367061,626.73,625.14,0.31992833]
[1740945998809,0.29367061,626.72,625.14,0.31992833]
[1740945999609,0.29360027,626.71,625.14,0.31992833]
[1740945999810,0.29360027,626.7,625.14,0.31992833]
[1740946000118,0.29360027,626.69,625.14,0.31992833]
[1740946000415,0.29360027,626.68,625.14,0.31992833]
[1740946000617,0.29360027,626.72,625.14,0.31992833]
[1740946000818,0.29360027,626.71,625.15,0.26319294]
[1740946001019,0.29360027,626.72,625.15,0.26319294]
[1740946001220,0.779,626.73,625.17,0.31991298]
[1740946001422,0.29359611,626.71,625.17,0.31991298]
[1740946001620,0.29359611,626.7,625.17,0.31991298]
[1740946001914,0.29359611,626.69,625.18,0.26316927]
[1740946002118,0.29359611,626.72,625.18,0.26316927]
[1740946002319,0.29359611,626.71,625.18,0.26316927]
[1740946002522,0.758,626.71,625.18,0.26316927]
[1740946002814,0.29359611,626.7,625.18,0.26316927]
[1740946003419,0.29359611,626.7,625.2,0.31989763]
[1740946003622,0.29359611,626.69,625.21,0.26316927]
[1740946003815,0.29359611,626.68,625.23,0.31988228]
[1740946004016,0.29359611,626.67,625.24,0.26316927]
[1740946004217,0.29359611,626.7,625.26,0.31986693]
[1740946004418,0.29359611,626.69,625.27,0.26316927]
[1740946004612,0.758,626.71,625.13,1.19666743]
[1740946004613,0.29356862,626.68,625.29,0.31985158]
[1740946004817,0.29356862,626.7,625.29,0.31985158]
[1740946005115,0.29356862,626.69,625.29,0.31985158]
[1740946005920,0.29356862,626.69,625.36,1.19666743]
[1740946006220,0.29356862,626.69,625.38,0.31980555]
[1740946007620,0.29356862,626.68,625.38,0.31980555]
[1740946007820,0.29356862,626.67,625.38,0.31980555]
[1740946008013,0.29356862,626.66,625.38,0.31980555]
[1740946008217,0.29356862,626.65,625.38,0.31980555]
[1740946008523,0.29356862,626.64,625.38,0.31980555]
[1740946008719,0.29356862,626.63,625.38,0.31980555]
[1740946008921,0.29356862,626.62,625.38,0.31980555]
[1740946009121,0.29356862,626.61,625.38,0.31980555]
[1740946009322,0.29356862,626.6,625.38,0.31980555]
[1740946009522,0.29356862,626.59,625.38,0.31980555]
[1740946009723,0.29356862,626.58,625.38,0.31980555]
[1740946009917,0.29356862,626.57,625.38,0.31980555]
[1740946010119,0.29356862,626.56,625.38,0.31980555]
[1740946010315,0.29356862,626.55,625.38,0.31980555]
[1740946010521,0.29356862,626.54,625.39,1.19666743]
[1740946010718,0.29356862,626.53,625.39,1.19666743]
[1740946010921,0.29356862,626.52,625.39,1.19666743]
[1740946011223,0.29356862,626.51,625.39,1.19666743]
[1740946011423,0.29356862,626.5,625.39,1.19666743]
[1740946011723,0.29356862,626.49,625.39,1.19666743]
[1740946011922,0.29356862,626.57,625.39,1.19666743]
[1740946012124,0.29356862,626.56,625.39,1.19666743]
[1740946012324,0.29356862,626.55,625.39,1.19666743]
[1740946012518,0.29356862,626.57,625.39,1.19666743]
[1740946012824,0.29356862,626.56,625.39,1.19666743]
[1740946013019,0.29356862,626.57,625.39,1.19666743]
[1740946013227,0.29356862,626.56,625.39,1.19666743]
[1740946013421,0.29356862,626.57,625.4,0.31979533]
[1740946014321,1.032,626.58,625.4,0.31979533]
[1740946014522,0.29366454,626.57,625.4,0.31979533]
[1740946016227,1.032,626.58,625.4,0.31979533]
[1740946016228,0.29364561,626.56,625.4,0.31979533]
[1740946016425,0.29364561,626.55,625.4,0.31979533]
[1740946016626,0.29364561,626.54,625.4,0.31979533]
[1740946016829,0.29364561,626.57,625.4,0.31979533]
[1740946017732,0.29360091,626.56,625.4,0.31979533]
[1740946017930,0.29360091,626.57,625.4,0.31979533]
[1740946018231,0.29360091,626.56,625.4,0.31979533]
[1740946018528,0.29360091,626.55,625.4,0.31979533]
[1740946018728,1.032,626.58,625.4,0.31979533]
[1740946018729,0.29360091,626.54,625.4,0.31979533]
[1740946018928,0.29360091,626.57,625.4,0.31979533]
[1740946019131,0.29360091,626.56,625.4,0.31979533]
[1740946019433,0.29358856,626.55,625.4,0.31979533]
[1740946019629,0.29358856,626.57,625.4,0.31979533]
[1740946019832,0.29358856,626.56,625.4,0.31979533]
[1740946020033,0.29358856,626.55,625.4,0.31979533]
[1740946020334,0.29358856,626.54,625.4,0.31979533]
[1740946020534,0.29358856,626.53,625.4,0.31979533]
[1740946023036,0.29358856,626.53,625.41,0.263085]
[1740946024238,0.931,626.54,625.41,0.263085]
[1740946024437,0.29350549,626.53,625.41,0.263085]
[1740946024937,0.931,626.54,625.43,0.31977999]
[1740946025240,0.931,626.54,625.44,0.263085]